lending/lending_fUSD_20250303
["ID","MTS","AMOUNT","RATE_DAILY","PERIOD"]
[355196831,1740995446207,-500.0,0.00014898,2]
[355196832,1740995446216,-500.0,0.00014898,2]
[355196833,1740995446226,-629.78,0.00014898,2]
[355196834,1740995446235,-500.0,0.00014898,2]
[355196835,1740995446248,-500.0,0.00014898,2]
[355196836,1740995446257,-9157.84,0.00014898,2]
[355196837,1740995446266,-500.0,0.00014898,2]
[355196838,1740995446276,-500.0,0.00014898,2]
[355196839,1740995446285,-500.0,0.00014898,2]
[355196840,1740995446294,-500.0,0.00014898,2]
[355196841,1740995446303,-744.4,0.00014898,2]
[355196842,1740995446312,-500.0,0.00014898,2]
[355196843,1740995446321,-500.0,0.00014898,2]
[355196844,1740995446331,-500.0,0.00014898,2]
[355196845,1740995446339,-500.0,0.00014898,2]
[355196846,1740995446348,-500.0,0.00014898,2]
[355196847,1740995446357,-13282.0,0.00014898,2]
[355196848,1740995446366,-500.0,0.00014898,2]
[355196849,1740995446375,-500.0,0.00014898,2]
[355196850,1740995446384,-500.0,0.00014898,2]
[355196851,1740995446393,-500.0,0.00014898,2]
[355196852,1740995446403,-503.59505223,0.00014898,2]
[355196853,1740995446412,-2136.0683,0.00014899,2]
[355196854,1740995446421,-1000.0,0.00014899,2]
[355196855,1740995446430,-500.0,0.00014899,2]
[355196856,1740995446440,-581.18624966,0.00014899,2]
[355196857,1740995446449,-500.0,0.00014899,2]
[355196858,1740995446458,-512.88297368,0.00014899,2]
[355196859,1740995446467,-500.0,0.00014899,2]
[355196860,1740995446476,-500.0,0.00014899,2]
[355196861,1740995446486,-500.0,0.00014899,2]
[355196862,1740995446497,-500.0,0.00014899,2]
[355196863,1740995446507,-644.20114815,0.00014899,2]
[355196864,1740995446516,-500.0,0.00014899,2]
[355196865,1740995446525,-500.0,0.00014899,2]
[355196866,1740995446534,-500.0,0.00014899,2]
[355196867,1740995446543,-500.0,0.00014899,2]
[355196869,1740995446552,-500.0,0.00014899,2]
[355196871,1740995446562,-500.0,0.00014899,2]
[355196873,1740995446571,-500.0,0.00014899,2]
[355196875,1740995446580,-500.0,0.00014899,2]
[355196877,1740995446590,-500.0,0.00014899,2]
[355196879,1740995446599,-510.86282653,0.00014899,2]
[355196881,1740995446608,-500.0,0.00014899,2]
[355196882,1740995446618,-500.0,0.00014899,2]
[355196884,1740995446627,-500.0,0.00014899,2]
[355196886,1740995446637,-500.0,0.00014899,2]
[355196888,1740995446646,-500.0,0.00014899,2]
[355196890,1740995446655,-504.05336815,0.00014899,2]
[355196892,1740995446664,-500.0,0.00014899,2]
[355196894,1740995446673,-507.03654661,0.00014899,2]
[355196895,1740995446682,-500.0,0.00014899,2]
[355196896,1740995446691,-502.95548623,0.00014899,2]
[355196897,1740995446701,-511.68272493,0.00014899,2]
[355196898,1740995446711,-504.00872805,0.00014899,2]
[355196899,1740995446720,-516.47406372,0.00014899,2]
[355196900,1740995446729,-504.91773777,0.00014899,2]
[355196901,1740995446738,-500.0,0.00014899,2]
[355196902,1740995446749,-515.42519585,0.00014899,2]
[355196903,1740995446758,-500.95431265,0.00014899,2]
[355196904,1740995446767,-503.70242715,0.00014899,2]
[355196905,1740995446776,-500.0,0.00014899,2]
[355196906,1740995446786,-508.32188013,0.00014899,2]
[355196907,1740995446796,-500.0,0.00014899,2]
[355196908,1740995446806,-500.0,0.00014899,2]
[355196909,1740995446815,-503.96516688,0.00014899,2]
[355196910,1740995446825,-508.39630257,0.00014899,2]
[355196911,1740995446834,-505.88481833,0.00014899,2]
[355196912,1740995446980,-500.0,0.00014899,2]
[355196913,1740995446991,-512.84525633,0.00014899,2]
[355196914,1740995447001,-591.50853036,0.00014899,2]
[355196915,1740995447010,-502.98562338,0.00014899,2]
[355196916,1740995447019,-511.45727125,0.00014899,2]
[355196917,1740995447030,-626.90413421,0.00014899,2]
[355196918,1740995447039,-504.00315857,0.00014899,2]
[355196919,1740995447048,-502.30168363,0.00014899,2]
[355196920,1740995447058,-500.0,0.00014899,2]
[355196921,1740995447067,-504.94864133,0.00014899,2]
[355196922,1740995447076,-500.63797356,0.00014899,2]
[355196923,1740995447085,-500.54400052,0.00014899,2]
[355196924,1740995447095,-512.74308465,0.00014899,2]
[355196925,1740995447104,-501.3364953,0.00014899,2]
[355196926,1740995447113,-535.6975656,0.00014899,2]
[355196927,1740995447123,-241.37659167,0.00014899,2]
[355196928,1740995447131,-506.21415045,0.00014899,2]
[355196929,1740995447140,-500.0,0.00014899,2]
[355196930,1740995447149,-500.76468976,0.00014899,2]
[355196931,1740995447159,-500.0,0.00014899,2]
[355196932,1740995447168,-502.28097602,0.00014899,2]
[355196933,1740995447177,-506.94183987,0.00014899,2]
[355196934,1740995447186,-500.0,0.00014899,2]
[355196935,1740995447195,-504.68872492,0.00014899,2]
[355196936,1740995447204,-508.8806689,0.00014899,2]
[355196937,1740995447214,-506.81496953,0.00014899,2]
[355196938,1740995447223,-500.0,0.00014899,2]
[355196939,1740995447232,-500.0,0.00014899,2]
[355196940,1740995447242,-503.12018948,0.00014899,2]
[355196941,1740995447251,-522.8745485,0.00014899,2]
[355196942,1740995447260,-501.23177862,0.00014899,2]
[355196943,1740995447269,-502.31142639,0.00014899,2]
[355196944,1740995447278,-487.70383262,0.00014899,2]
[355196945,1740995447298,-12.29616738,0.00014899,2]
[355196946,1740995447307,-504.46658216,0.00014899,2]
[355196947,1740995447317,-503.34906346,0.00014899,2]
[355196948,1740995447326,-500.0,0.00014899,2]
[355196949,1740995447335,-506.7172457,0.00014899,2]
[355196950,1740995447344,-511.04169754,0.00014899,2]
[355196951,1740995447354,-500.0,0.00014899,2]
[355196952,1740995447363,-500.0,0.00014899,2]
[355196953,1740995447372,-501.04762743,0.00014899,2]
[355196954,1740995447382,-501.6895412,0.00014899,2]
[355196955,1740995447392,-503.98898049,0.00014899,2]
[355196956,1740995447401,-511.77511789,0.00014899,2]
[355196957,1740995447410,-500.0,0.00014899,2]
[355196958,1740995447419,-500.0,0.00014899,2]
[355196959,1740995447428,-501.91209741,0.00014899,2]
[355196960,1740995447438,-504.23637474,0.00014899,2]
[355196961,1740995447447,-500.0,0.00014899,2]
[355196962,1740995447456,-500.0,0.00014899,2]
[355196963,1740995447464,-506.40211535,0.00014899,2]
[355196964,1740995447474,-506.76102208,0.00014899,2]
[355196965,1740995447488,-500.0,0.00014899,2]
[355196966,1740995447499,-507.17870827,0.00014899,2]
[355196967,1740995447508,-509.78242882,0.00014899,2]
[355196968,1740995447517,-500.0,0.00014899,2]
[355196969,1740995447527,-507.09068607,0.00014899,2]
[355196970,1740995447535,-500.0,0.00014899,2]
[355196971,1740995447545,-507.93379524,0.00014899,2]
[355196972,1740995447554,-500.0,0.00014899,2]
[355196973,1740995447563,-500.0,0.00014899,2]
[355196974,1740995447572,-209.15300427,0.00014899,2]
[355196975,1740995447584,-290.84699573,0.00014899,2]
[355196976,1740995447593,-500.0,0.00014899,2]
[355196977,1740995447602,-506.0608539,0.00014899,2]
[355196978,1740995447611,-504.92932202,0.00014899,2]
[355196979,1740995447620,-500.0,0.00014899,2]
[355196980,1740995447629,-503.39901679,0.00014899,2]
[355196981,1740995447638,-501.66324502,0.00014899,2]
[355196982,1740995447647,-500.0,0.00014899,2]
[355196983,1740995447656,-500.0,0.00014899,2]
[355196984,1740995447666,-501.28098805,0.00014899,2]
[355196985,1740995447675,-500.0,0.00014899,2]
[355196986,1740995447684,-500.0,0.00014899,2]
[355196987,1740995447694,-500.0,0.00014899,2]
[355196988,1740995447704,-510.3953698,0.00014899,2]
[355196989,1740995447713,-500.0,0.00014899,2]
[355196990,1740995447723,-506.29823912,0.00014899,2]
[355196991,1740995447732,-500.0,0.00014899,2]
[355196992,1740995447742,-199.67794785,0.00014899,2]
[355196993,1740995447751,-500.0,0.00014899,2]
[355196994,1740995447760,-504.92645485,0.00014899,2]
[355196995,1740995447770,-500.0,0.00014899,2]
[355196996,1740995447779,-508.17865724,0.00014899,2]
[355196997,1740995447788,-500.0,0.00014899,2]
[355196998,1740995447797,-505.81554789,0.00014899,2]
[355196999,1740995447806,-500.0,0.00014899,2]
[355197000,1740995447815,-12.02736196,0.00014899,2]
[355197001,1740995448490,-959.47,0.00014897,2]
[355197002,1740995448503,-491.91637497,0.00014899,2]
[355197003,1740995448512,-505.93706073,0.00014899,2]
[355197004,1740995448522,-500.0,0.00014899,2]
[355197005,1740995448532,-500.0,0.00014899,2]
[355197006,1740995448541,-530.43815914,0.00014899,2]
[355197007,1740995448551,-500.0,0.00014899,2]
[355197008,1740995448560,-508.96201687,0.00014899,2]
[355197009,1740995448570,-500.0,0.00014899,2]
[355197010,1740995448579,-508.29775453,0.00014899,2]
[355197011,1740995448589,-500.0,0.00014899,2]
[355197012,1740995448599,-500.0,0.00014899,2]
[355197013,1740995448609,-500.0,0.00014899,2]
[355197014,1740995448619,-500.0,0.00014899,2]
[355197015,1740995448628,-606.49246515,0.00014899,2]
[355197016,1740995448639,-500.0,0.00014899,2]
[355197017,1740995448649,-510.78200121,0.00014899,2]
[355197018,1740995448658,-552.05,0.00014899,2]
[355197019,1740995448668,-500.0,0.00014899,2]
[355197020,1740995448678,-554.65,0.00014899,2]
[355197021,1740995448687,-500.0,0.00014899,2]
[355197022,1740995448697,-500.0,0.00014899,2]
[355197023,1740995448706,-500.0,0.00014899,2]
[355197024,1740995448716,-500.0,0.00014899,2]
[355197025,1740995448726,-500.0,0.00014899,2]
[355197026,1740995448736,-500.0,0.00014899,2]
[355197027,1740995448747,-500.0,0.00014899,2]
[355197028,1740995448756,-507.42871344,0.00014899,2]
[355197029,1740995448766,-500.0,0.00014899,2]
[355197030,1740995448776,-507.3853749,0.00014899,2]
[355197031,1740995448785,-508.65050691,0.00014899,2]
[355197032,1740995448795,-500.0,0.00014899,2]
[355197033,1740995448804,-500.0,0.00014899,2]
[355197034,1740995448814,-500.0,0.00014899,2]
[355197035,1740995448823,-500.0,0.00014899,2]
[355197036,1740995448833,-500.0,0.00014899,2]
[355197037,1740995448842,-500.0,0.00014899,2]
[355197038,1740995448851,-500.0,0.00014899,2]
[355197039,1740995448861,-500.0,0.00014899,2]
[355197040,1740995448871,-500.0,0.00014899,2]
[355197041,1740995448880,-504.79976021,0.00014899,2]
[355197042,1740995448889,-500.0,0.00014899,2]
[355197043,1740995448899,-500.0,0.00014899,2]
[355197044,1740995448908,-500.0,0.00014899,2]
[355197045,1740995448918,-500.0,0.00014899,2]
[355197046,1740995448927,-500.0,0.00014899,2]
[355197047,1740995448938,-500.0,0.00014899,2]
[355197048,1740995448951,-500.0,0.00014899,2]
[355197049,1740995448960,-596.99864339,0.00014899,2]
[355197050,1740995448970,-500.0,0.00014899,2]
[355197051,1740995448980,-500.0,0.00014899,2]
[355197052,1740995448990,-500.0,0.00014899,2]
[355197053,1740995449001,-500.0,0.00014899,2]
[355197054,1740995449010,-500.0,0.00014899,2]
[355197055,1740995449021,-500.0,0.00014899,2]
[355197056,1740995449031,-500.0,0.00014899,2]
[355197057,1740995449040,-500.0,0.00014899,2]
[355197058,1740995449050,-500.0,0.00014899,2]
[355197059,1740995449060,-500.0,0.00014899,2]
[355197060,1740995449069,-500.0,0.00014899,2]
[355197061,1740995449078,-500.0,0.00014899,2]
[355197062,1740995449088,-500.0,0.00014899,2]
[355197063,1740995449098,-500.0,0.00014899,2]
[355197064,1740995449107,-500.0,0.00014899,2]
[355197065,1740995449116,-500.0,0.00014899,2]
[355197066,1740995449126,-500.0,0.00014899,2]
[355197067,1740995449135,-500.0,0.00014899,2]
[355197068,1740995449145,-500.0,0.00014899,2]
[355197069,1740995449154,-500.0,0.00014899,2]
[355197070,1740995449164,-500.0,0.00014899,2]
[355197071,1740995449173,-500.0,0.00014899,2]
[355197072,1740995449182,-500.0,0.00014899,2]
[355197073,1740995449193,-500.0,0.00014899,2]
[355197074,1740995449202,-500.0,0.00014899,2]
[355197075,1740995449211,-500.0,0.00014899,2]
[355197076,1740995449221,-500.0,0.00014899,2]
[355197077,1740995449231,-500.0,0.00014899,2]
[355197078,1740995449240,-500.0,0.00014899,2]
[355197079,1740995449251,-500.0,0.00014899,2]
[355197080,1740995449261,-500.0,0.00014899,2]
[355197081,1740995449271,-500.0,0.00014899,2]
[355197082,1740995449280,-500.0,0.00014899,2]
[355197083,1740995449290,-500.0,0.00014899,2]
[355197084,1740995449300,-500.0,0.00014899,2]
[355197085,1740995449310,-500.0,0.00014899,2]
[355197086,1740995449319,-500.0,0.00014899,2]
[355197087,1740995449329,-500.0,0.00014899,2]
[355197088,1740995449339,-500.0,0.00014899,2]
[355197089,1740995449348,-500.0,0.00014899,2]
[355197090,1740995449357,-500.0,0.00014899,2]
[355197091,1740995449367,-639.9,0.00014899,2]
[355197092,1740995449376,-500.0,0.00014899,2]
[355197093,1740995449385,-500.0,0.00014899,2]
[355197094,1740995449395,-500.0,0.00014899,2]
[355197095,1740995449404,-500.0,0.00014899,2]
[355197096,1740995449413,-500.0,0.00014899,2]
[355197097,1740995449422,-500.0,0.00014899,2]
[355197098,1740995449431,-1821.01,0.00014899,2]
[355197099,1740995449441,-500.0,0.00014899,2]
[355197100,1740995449450,-500.0,0.00014899,2]
[355197101,1740995449459,-500.0,0.00014899,2]
[355197102,1740995449468,-500.0,0.00014899,2]
[355197103,1740995449478,-500.0,0.00014899,2]
[355197104,1740995449487,-500.0,0.00014899,2]
[355197105,1740995449498,-500.0,0.00014899,2]
[355197106,1740995449507,-378.96257165,0.00014899,2]
[355197107,1740995449516,-500.0,0.00014899,2]
[355197108,1740995449526,-500.0,0.00014899,2]
[355197109,1740995449535,-500.0,0.00014899,2]
[355197110,1740995449544,-500.0,0.00014899,2]
[355197111,1740995449553,-500.0,0.00014899,2]
[355197112,1740995449563,-234.93321853,0.00014899,2]
[355197113,1740995449572,-500.0,0.00014899,2]
[355197114,1740995449582,-160.64565074,0.000149,2]
[355197115,1740995449591,-169.21764487,0.000149,2]
[355197116,1740995449600,-264.71803836,0.000149,2]
[355197117,1740995449609,-465.99941951,0.000149,2]
[355197118,1740995449618,-556.16,0.00014923,2]
[355197119,1740995449627,-500.0,0.00014969,2]
[355197120,1740995449637,-1277.0,0.0001498,2]
[355197121,1740995449646,-2031.0,0.0001498,2]
[355197122,1740995449655,-150.0,0.0001498,2]
[355197123,1740995449664,-570.0,0.0001498,2]
[355197124,1740995449673,-640.0,0.0001498,2]
[355197125,1740995449682,-1583.0,0.0001498,2]
[355197126,1740995449691,-786.0,0.0001498,2]
[355197127,1740995449701,-541.0,0.0001498,2]
[355197128,1740995449710,-1269.0,0.0001498,2]
[355197129,1740995449719,-908.0,0.0001498,2]
[355197130,1740995449728,-1427.0,0.0001498,2]
[355197131,1740995449737,-3977.518,0.0001498,2]
[355197132,1740995449747,-3928.0,0.0001498,2]
[355197133,1740995449756,-150.0,0.0001498,2]
[355197134,1740995449765,-1011.0,0.0001498,2]
[355197135,1740995449775,-150.457,0.0001498,2]
[355197136,1740995449784,-1112.0,0.0001498,2]
[355197137,1740995449793,-501.23769038,0.00014999,2]
[355197138,1740995449802,-508.73234827,0.00014999,2]
[355197139,1740995449811,-502.14075291,0.00014999,2]
[355197140,1740995449821,-161.6092769,0.00014999,2]
[355197141,1740995449830,-501.1456317,0.00014999,2]
[355197142,1740995449839,-500.0,0.00014999,2]
[355197143,1740995449848,-508.31065964,0.00014999,2]
[355197144,1740995449859,-500.0,0.00014999,2]
[355197145,1740995449868,-503.51288257,0.00014999,2]
[355197146,1740995449877,-501.44802155,0.00014999,2]
[355197147,1740995449887,-501.51386228,0.00014999,2]
[355197148,1740995449896,-503.22717642,0.00014999,2]
[355197149,1740995449905,-216.41174926,0.00014999,2]
[355197150,1740995449915,-500.0,0.00014999,2]
[355197151,1740995449924,-500.0,0.00014999,2]
[355197152,1740995449933,-500.61568992,0.00014999,2]
[355197153,1740995449942,-500.0,0.00014999,2]
[355197154,1740995449953,-500.0,0.00014999,2]
[355197155,1740995449963,-500.0,0.00014999,2]
[355197156,1740995449972,-500.0,0.00014999,2]
[355197157,1740995449981,-500.0,0.00014999,2]
[355197158,1740995449990,-500.0,0.00014999,2]
[355197159,1740995450004,-233.88727131,0.00014999,2]
[355197160,1740995450014,-500.0,0.00014999,2]
[355197161,1740995450023,-211.16052671,0.00015,3]
[355197162,1740995450034,-497527.2875964,0.00015,3]
[355197163,1740995450296,-955.12903186,0.00015,3]
[355197164,1740995461203,4579.90248197,0.0001485,2]
[355197165,1740995472669,3333.33333,0.0001485,2]
[355197166,1740995548987,216.7,0.00014178,2]
[355197167,1740995549182,216.7,0.00014261,2]
[355197168,1740995549377,216.7,0.00014343,2]
[355197169,1740995549586,216.7,0.00014425,2]
[355197170,1740995549814,216.7,0.00014507,2]
[355197171,1740995550022,216.7,0.00014589,2]
[355197172,1740995550226,216.7,0.00014671,2]
[355197173,1740995550445,216.7,0.00014753,2]
[355197174,1740995550665,216.7,0.00014835,2]
[355197175,1740995552063,5314.86731749,0.00014851,2]
[355197176,1740995594706,2000.0,0.00014112,2]
[355197177,1740995605114,250.0,0.00014112,2]
[355197178,1740995684674,1000.0,0.00014797,2]
[355197179,1740995686554,23900.0,0.00014092,2]
[355197180,1740995704866,314.58358657,0.00014798,2]
[355197181,1740995710899,245.0,0.00014092,3]
[355197182,1740995713352,526.35,0.00014092,2]
[355197183,1740995713756,526.35,0.00014797,2]
[355197184,1740995716102,3116.21,0.0001408,2]
[355197185,1740995718354,250.0,0.00013,2]
[355197186,1740995719654,2163.39,0.00012163,2]
[355197187,1740995719864,2163.39,0.00014426,2]
[355197188,1740995820829,2573.12834,0.0001485,2]
[355197189,1740995853188,355.14000111,0.00014797,2]
[355197190,1740995858143,355.14000111,0.00014808,2]
[355197191,1740995863175,355.14000111,0.0001482,2]
[355197192,1740995868159,355.14000111,0.00014831,2]
[355197193,1740995873190,355.14000111,0.00014843,2]
[355197194,1740995940806,1092.53223673,0.00014797,2]
[355197195,1740995945843,1092.53223664,0.00014808,2]
[355197196,1740995950953,1092.53223664,0.0001482,2]
[355197197,1740995955878,1092.53223664,0.00014831,2]
[355197198,1740995960796,1092.53223664,0.00014843,2]
[355197199,1740995969745,2136.0683,0.00014797,2]
[355197201,1740996007668,233.0,0.00014092,3]
[355197202,1740996013349,815.1809,0.00014797,2]
[355197203,1740996036250,815.0,0.000148,2]
[355197204,1740996036386,1000.0,0.00014773,2]
[355197205,1740996036632,1000.0,0.00014787,2]
[355197206,1740996036741,1000.0,0.00014763,2]
[355197207,1740996046737,170.79286561,0.00014797,2]
[355197209,1740996106196,314.1482718,0.00014797,2]
[355197211,1740996178770,1000.0,0.0001397,2]
[355197212,1740996181783,2777.77777,0.0001485,2]
[355197213,1740996210177,213.99,0.00013963,2]
[355197214,1740996280825,166.867901,0.000144,2]
[355197215,1740996308293,221.0,0.00014092,3]
[355197216,1740996364688,398.3222,0.00014796,2]
[355197217,1740996373114,185.81,0.00014409,2]
[355197220,1740996388478,150.0,0.00013998,7]
[355197221,1740996412235,1454.96044389,0.00014797,2]
[355197222,1740996417169,1454.96044381,0.00014808,2]
[355197223,1740996422211,1454.96044381,0.0001482,2]
[355197224,1740996427236,1454.96044381,0.00014831,2]
[355197225,1740996432195,1454.96044381,0.00014843,2]
[355197226,1740996443532,177.5700006,0.00014796,2]
[355197228,1740996448478,177.57000055,0.00014808,2]
[355197229,1740996453488,177.57000055,0.00014819,2]
[355197230,1740996458568,177.57000055,0.00014831,2]
[355197231,1740996463466,177.57000055,0.00014842,2]
[355197232,1740996512110,-10000020.0,0.00026411,45]
[355197235,1740996521145,-10000025.0,0.00026411,45]
[355197236,1740996535057,2561.33046,0.0001485,2]
[355197237,1740996568829,-8000000.0,0.00026411,45]
[355197238,1740996583231,-10000029.0,0.00026411,45]
[355197239,1740996604545,250.0,0.0001393,2]
[355197240,1740996604823,188.49,0.00013935,2]
[355197241,1740996605033,188.49,0.00014016,2]
[355197242,1740996605245,188.49,0.00014097,2]
[355197243,1740996605454,188.49,0.00014177,2]
[355197244,1740996605654,188.49,0.00014258,2]
[355197245,1740996605862,188.49,0.00014339,2]
[355197246,1740996606173,188.49,0.00014419,2]
[355197247,1740996606265,188.49,0.000145,2]
[355197248,1740996606462,188.49,0.00014581,2]
[355197249,1740996606687,188.49,0.00014661,2]
[355197250,1740996607092,188.49,0.00014742,2]
[355197251,1740996607506,188.49,0.00014823,2]
[355197252,1740996625841,-10000020.0,0.00026411,45]
[355197253,1740996631733,2000.0,0.00013935,2]
[355197254,1740996632227,-177.57000055,0.00014854,2]
[355197255,1740996632239,-150.0,0.00014854,2]
[355197256,1740996632249,-1454.96044381,0.00014854,2]
[355197257,1740996632259,-177.57000055,0.00014865,2]
[355197258,1740996632269,-1454.96044381,0.00014866,2]
[355197259,1740996632279,-745.62705004,0.00014866,2]
[355197260,1740996632386,-1246.66228302,0.00014866,2]
[355197261,1740996632402,-177.57000055,0.00014877,2]
[355197262,1740996632422,-1454.96044381,0.00014877,2]
[355197263,1740996632432,-177.57000055,0.00014888,2]
[355197264,1740996632444,-1454.96044381,0.00014889,2]
[355197265,1740996632454,-300.0,0.00014894,2]
[355197266,1740996632464,-500.0,0.00014895,2]
[355197267,1740996632474,-500.0,0.00014895,2]
[355197268,1740996632485,-103.50302144,0.00014895,2]
[355197269,1740996632544,-280.95588048,0.00014895,2]
[355197270,1740996632653,-115.54109808,0.00014895,2]
[355197271,1740996632663,-500.0,0.00014895,2]
[355197272,1740996632673,-879.23,0.00014895,2]
[355197273,1740996632687,-500.0,0.00014895,2]
[355197274,1740996632697,-384.48562847,0.00014895,2]
[355197275,1740996632709,-865.42,0.00014895,2]
[355197276,1740996632718,-500.0,0.00014895,2]
[355197277,1740996632728,-917.28,0.00014895,2]
[355197278,1740996632737,-500.0,0.00014895,2]
[355197279,1740996632748,-500.0,0.00014895,2]
[355197280,1740996632759,-772.92,0.00014895,2]
[355197281,1740996632769,-500.0,0.00014895,2]
[355197282,1740996632778,-500.0,0.00014895,2]
[355197283,1740996632789,-6.97927362,0.00014895,2]
[355197284,1740996632802,-493.02072638,0.00014895,2]
[355197285,1740996632815,-500.0,0.00014895,2]
[355197286,1740996632824,-500.0,0.00014895,2]
[355197287,1740996632833,-695.16,0.00014895,2]
[355197288,1740996632843,-6115.87722813,0.00014895,2]
[355197294,1740996638224,-1682.2401957,0.00014895,2]
[355197295,1740996638236,-469.9079,0.00014895,2]
[355197296,1740996638248,-6300.66467617,0.00014895,2]
[355197297,1740996638257,-500.0,0.00014895,2]
[355197298,1740996638266,-500.0,0.00014895,2]
[355197299,1740996638275,-542.24,0.00014895,2]
[355197300,1740996638284,-554.57,0.00014895,2]
[355197301,1740996638293,-500.0,0.00014895,2]
[355197302,1740996638302,-500.0,0.00014895,2]
[355197303,1740996638313,-676.62,0.00014895,2]
[355197304,1740996638324,-500.0,0.00014895,2]
[355197305,1740996638333,-11054.46,0.00014895,2]
[355197306,1740996638343,-500.0,0.00014895,2]
[355197307,1740996638354,-593.99,0.00014895,2]
[355197308,1740996638363,-500.0,0.00014895,2]
[355197309,1740996638372,-74.35374989,0.00014895,2]
[355197310,1740996638385,-414.26349789,0.00014895,2]
[355197311,1740996638402,-151.39275222,0.00014895,2]
[355197312,1740996638411,-500.0,0.00014895,2]
[355197313,1740996638420,-500.0,0.00014895,2]
[355197314,1740996638429,-500.0,0.00014895,2]
[355197315,1740996638439,-621.34,0.00014895,2]
[355197316,1740996638448,-500.0,0.00014895,2]
[355197317,1740996638459,-500.0,0.00014895,2]
[355197318,1740996638468,-500.0,0.00014895,2]
[355197319,1740996638478,-500.0,0.00014895,2]
[355197320,1740996638487,-173.96434946,0.00014896,2]
[355197321,1740996638496,-500.0,0.00014896,2]
[355197322,1740996638506,-153.28301475,0.00014896,2]
[355197323,1740996638515,-3121.89320286,0.00014896,2]
[355197324,1740996639165,-9620939.43925208,0.00026411,45]
[355197325,1740996639194,-379083.56074792,0.00026411,45]
[355197330,1740996640107,-500.0,0.00014895,2]
[355197331,1740996640116,-956.04,0.00014895,2]
[355197332,1740996640126,-291.46,0.00014896,2]
[355197333,1740996640159,-4352.21879714,0.00014896,2]
[355197334,1740996640169,-214.26,0.00014896,2]
[355197335,1740996640178,-500.0,0.00014896,2]
[355197336,1740996640187,-500.0,0.00014896,2]
[355197337,1740996640196,-500.0,0.00014896,2]
[355197338,1740996640205,-500.0,0.00014896,2]
[355197339,1740996640215,-500.0,0.00014896,2]
[355197340,1740996640224,-500.0,0.00014896,2]
[355197341,1740996640234,-500.0,0.00014896,2]
[355197342,1740996640243,-500.0,0.00014896,2]
[355197343,1740996640252,-500.0,0.00014896,2]
[355197344,1740996640262,-500.0,0.00014896,2]
[355197345,1740996640271,-500.0,0.00014896,2]
[355197346,1740996640280,-500.0,0.00014896,2]
[355197347,1740996640290,-500.0,0.00014896,2]
[355197348,1740996640301,-220.55185842,0.00014896,2]
[355197349,1740996640318,-500.0,0.00014896,2]
[355197350,1740996640328,-500.0,0.00014896,2]
[355197351,1740996640339,-500.0,0.00014896,2]
[355197352,1740996640361,-500.0,0.00014896,2]
[355197353,1740996640374,-500.0,0.00014896,2]
[355197354,1740996640385,-500.0,0.00014896,2]
[355197355,1740996640397,-500.0,0.00014896,2]
[355197356,1740996640407,-509.81880431,0.00014896,2]
[355197357,1740996640417,-500.0,0.00014896,2]
[355197358,1740996640427,-500.0,0.00014896,2]
[355197359,1740996640437,-500.0,0.00014896,2]
[355197360,1740996640447,-500.0,0.00014896,2]